Cogmind - Beta 11 X6 @@@ ROGUE MODE // 2021.08.08 @ 05:43:17 Player: Olga Result: Destroyed by Executioner with Helical Railgun Performance ------------- Evolutions (5) 2500 Regions Visited (21) 4200 Robots Destroyed (120) 600 Value Destroyed (4966) 4966 Prototype IDs (52) 1040 Alien Tech Used (0) 0 Bonus (4911) 4911 TOTAL SCORE: 18217 Bonus ------- High Alert Combat Kills 374 Follower Combat Kills 2111 Aligned with FarCom 300 Met Data Miner 300 Met Imprinter 300 Met Warlord at Base 500 MAIN.C Attacked Warlord 500 Warlord Defense Kill 790 Friendly Fire -264 Cogmind --------- Core Integrity 0/1000 Matter 346/450 Energy 75/100 System Corruption 0% Temperature Cool (0) Movement Walking (200) Ox1 Location -5/Warlord Parts ------- > --- POWER (1) -------- (None) > --- PROPULSION (6) --- Enhanced Flexi-carbon Leg > --- UTILITY (7) ------ Large Storage Unit Large Matter Pod Advanced Signal Interpreter Makeshift Hacking Suite System Shield Improved System Shield > --- WEAPON (3) ------- Vortex Cannon Vortex Cannon > --- INVENTORY (15) --- Fission Core Micro Fission Core Advanced ECM Suite Mobile Refinery Mk. CCLXVII Gauss Rifle Heavy Machine Gun Mini Assault Cannon Mini Assault Cannon Heavy Rocket Launcher Heavy Rocket Launcher Heavy Pick Peak State ------------ > --- POWER ------------ Micro Fission Core > --- PROPULSION ------- Armored Medium Treads Carbon-fiber Leg Carbon-fiber Leg Flexi-carbon Leg Armored Leg Enhanced Flexi-carbon Leg > --- UTILITY ---------- High-capacity Storage Unit Advanced Signal Interpreter Phase Shifter Makeshift Armor Plating Advanced Shield Generator Makeshift Hacking Suite Improved System Shield > --- WEAPON ----------- YOLO Cannon Magnetic Acceleration Cannon > --- INVENTORY -------- Light Angular Momentum Engine Large Matter Pod Enhanced Optical Array Advanced ECM Suite System Shield Mobile Refinery Mk. CCLXVII Drone Bay Drone Bay Hacking Drone Bay Makeshift Shrapnel Gun Heavy Machine Gun Mini Assault Cannon Mini Assault Cannon [Rating: 96] Favorites ----------- Power Angular Momentum Engine Engine Angular Momentum Engine Power Core Micro Fission Core Reactor Antimatter Reactor Propulsion Carbon-fiber Leg Treads Armored Treads Leg Carbon-fiber Leg Wheel Compact Wheel Hover Unit Antigrav System Utility Hardened Medium Armor Plating Device Advanced Sensor Array Storage High-capacity Storage Unit Processor Signal Interpreter Hackware Improved System Shield Protection Hardened Medium Armor Plating Weapon Precision Assault Rifle Energy Gun Small Laser Energy Cannon YOLO Cannon Ballistic Gun Precision Assault Rifle Ballistic Cannon Mini Assault Cannon Launcher Rocket Launcher Build | -11 -10 -10 -10 -9 -8 -7 -7 -7 -7 -6 -6 -6 -6 -6 -6 -6 -5 -5 -5 -5 -5 ------- Run | Scr Mat Min Exi Min Mat Fac Low Low Dat Pro Fac Was Fac Low Low Zio Pro Fac Upp Upp War Slots Evolved 10 | . . . . . 4 2 . . . . 2 . . . . . . 2 . . . Power . | . . . . . . . . . . . . . . . . . . . . . . Propulsion 4 | . . . . . 2 . . . . . 2 . . . . . . . . . . Utility 5 | . . . . . 2 2 . . . . . . . . . . . 1 . . . Weapon 1 | . . . . . . . . . . . . . . . . . . 1 . . . Parts Attached 158 | . 7 5 2 2 10 10 4 6 . 6 1 7 7 2 7 2 5 45 5 14 11 Power 11 | . 1 . . . . 1 1 1 . 1 . 1 . 1 . . . 3 . 1 . Engine 7 | . 1 . . . . 1 1 1 . 1 . . . 1 . . . 1 . . . Core 2 | . . . . . . . . . . . . . . . . . . 1 . 1 . Reactor 2 | . . . . . . . . . . . . 1 . . . . . 1 . . . Propulsion 38 | . 1 1 1 . 3 3 1 1 . . 1 1 3 . 3 . 2 12 1 2 2 Treads 6 | . . . . . . . . . . . 1 1 . . 1 . 2 1 . . . Leg 26 | . 1 1 1 . 3 3 1 1 . . . . . . 2 . . 10 . 1 2 Wheel 5 | . . . . . . . . . . . . . 3 . . . . 1 . 1 . Hover 1 | . . . . . . . . . . . . . . . . . . . 1 . . Flight . | . . . . . . . . . . . . . . . . . . . . . . Utility 58 | . 3 . . . 5 4 . . . 2 . 5 4 . 4 . 3 16 4 7 1 Device 28 | . 2 . . . . 3 . . . . . 2 2 . 3 . 3 7 3 3 . Storage 7 | . 1 . . . 1 . . . . . . . 1 . . . . 2 . 2 . Processor 3 | . . . . . 1 . . . . . . . . . . . . 2 . . . Hackware 4 | . . . . . . . . . . . . 1 . . . . . 1 . 1 1 Protection 16 | . . . . . 3 1 . . . 2 . 2 1 . 1 . . 4 1 1 . Artifact . | . . . . . . . . . . . . . . . . . . . . . . Weapon 51 | . 2 4 1 2 2 2 2 4 . 3 . . . 1 . 2 . 14 . 4 8 Energy Gun . | . . . . . . . . . . . . . . . . . . . . . . Energy Cannon 6 | . . . . . . . . . . . . . . . . . . 3 . 1 2 Ballistic Gun 25 | . 2 . . 2 2 2 1 2 . . . . . . . 2 . 8 . 1 3 Ballistic Cannon 12 | . . 2 1 . . . . . . 2 . . . 1 . . . 3 . 2 1 Launcher 8 | . . 2 . . . . 1 2 . 1 . . . . . . . . . . 2 Special Weapon . | . . . . . . . . . . . . . . . . . . . . . . Impact Weapon . | . . . . . . . . . . . . . . . . . . . . . . Slashing Weapon . | . . . . . . . . . . . . . . . . . . . . . . Piercing Weapon . | . . . . . . . . . . . . . . . . . . . . . . Special Melee Weapon . | . . . . . . . . . . . . . . . . . . . . . . Unidentified Prototypes 7 | . . . . . 1 . . . . . . . . . . . . 2 2 . 2 Parts Lost 67 | . 2 1 . . 2 . 1 2 . 11 . . . 3 . . 1 25 1 10 8 Power 9 | . 1 . . . . . 1 . . 1 . . . 1 . . . 3 . 1 1 Propulsion 28 | . . . . . 1 . . 1 . 4 . . . 2 . . 1 11 1 4 3 Utility 20 | . . . . . 1 . . 1 . 5 . . . . . . . 8 . 4 1 Weapon 10 | . 1 1 . . . . . . . 1 . . . . . . . 3 . 1 3 Highest Loss Streak 10 | . 2 1 . . 2 . 1 2 . 10 . . . 3 . . 1 10 1 6 8 Average Slot Usage (%) 83 | . 96 97 85 100 99 93 99 93 92 84 9 26 77 78 76 85 92 86 71 63 70 Engine 5 | . 13 14 14 14 9 7 6 7 7 6 . . . 4 6 6 6 2 5 3 . Treads 6 | . . . . . . . . . . . 3 7 13 13 15 20 21 8 5 . . Leg 18 | . 28 28 28 28 35 30 30 29 30 25 . . . . 11 13 10 19 17 11 15 Wheel 1 | . . . . . . . . . . . . . 17 10 3 . . . . 3 . Device 11 | . 11 14 14 14 9 10 15 8 7 6 . . 15 20 17 13 13 6 5 6 4 Storage 7 | . 14 14 14 14 9 7 7 7 7 6 . . 4 6 6 6 6 7 5 6 11 Processor 3 | . . . . . 9 7 7 7 7 6 . . . . . . . 2 11 9 5 Hackware 4 | . . . . . . . . . . . . 3 6 6 6 6 6 9 5 5 14 Protection 8 | . . . . . 9 12 15 15 15 14 . 1 6 6 7 13 13 7 5 3 . Ballistic Gun 8 | . 12 12 . 28 18 15 13 14 15 13 . . . . . 5 13 11 . 1 5 Ballistic Cannon 1 | . . 9 . . . . . . . . 6 6 6 7 . . . 1 . 2 3 Naked Turns . | . . . . . . . . . . . . . . . . . . . . . . Heaviest Build 83 | 10 19 21 20 20 38 45 47 57 53 53 4 68 78 82 71 71 76 83 83 74 50 Greatest Support 136 | 20 20 20 20 20 40 55 65 65 55 55 20 90 90 90 118 118 136 136 58 58 81 Greatest Overweight (x) 4 | . . 1 . . . . . 1 . 2 1 3 1 . . . . 4 1 2 . Average Overweight (x) . | . . . . . . . . . . . . . . . . . . . 1 1 . Largest Inventory Capacity 20 | . 10 10 10 10 15 15 15 15 15 15 5 5 20 20 20 20 20 20 20 20 15 Average Capacity 16 | . 8 10 10 10 11 15 15 15 15 14 5 5 15 20 20 20 20 20 20 19 15 Most Carried 20 | . 10 10 10 10 15 15 15 15 14 14 5 5 16 20 20 20 20 20 16 20 15 Average Carried 15 | . 7 9 9 9 10 14 14 14 14 13 5 5 9 18 19 19 19 17 15 15 14 Final Capacity 20 | 8 10 10 10 10 15 15 15 15 15 5 5 5 20 20 20 20 20 20 20 15 15 Final Carried 20 | 6 10 10 10 10 15 15 15 14 14 5 5 5 16 20 20 20 20 16 16 11 11 Class Distribution -------------------- 65% | Mutant 10% | Derelict-Mutant 5% | Skirmisher 5% | Hacker-Tank 3% | Hacker-Mutant 3% | Scavenger-Mutant Dominant Class ---------------- Mutant | -10/Materials Mutant | -10/Mines Mutant | -10/Exiles Skirmisher | -9/Mines Skirmisher | -8/Materials Skirmisher | -7/Factory Mutant | -7/Lower Caves Mutant | -7/Lower Caves Mutant | -7/Data Miner Mutant | -6/Proximity Caves Mutant | -6/Factory Mutant | -6/Waste Mutant | -6/Factory Mutant | -6/Lower Caves Mutant | -6/Lower Caves Mutant | -6/Zion Derelict-Mutant | -5/Proximity Caves Scavenger-Skirmisher | -5/Factory Scavenger-Mutant | -5/Upper Caves Mutant | -5/Upper Caves Hacker-Tank | -5/Warlord Resources | -11 -10 -10 -10 -9 -8 -7 -7 -7 -7 -6 -6 -6 -6 -6 -6 -6 -5 -5 -5 -5 -5 ----------- Run | Scr Mat Min Exi Min Mat Fac Low Low Dat Pro Fac Was Fac Low Low Zio Pro Fac Upp Upp War Matter Collected 3641 | 200 49 96 . 38 252 . 212 316 . 144 . 129 240 97 143 28 320 724 294 334 25 Remotely . | . . . . . . . . . . . . . . . . . . . . . . Salvage Created 4276 | . 451 69 . . 268 . 145 382 . 350 . . . 49 . . 442 1327 244 417 132 Parts 190 | . 32 3 . . 18 . 13 18 . 15 . . . 1 . . 16 56 6 9 3 Haulers Intercepted 4 | . 2 . . . 1 . . . . . . . . . . . . 1 . . . Recyclers Shooed 2 | . . 1 . . 1 . . . . . . . . . . . . . . . . Parts Field Recycled . | . . . . . . . . . . . . . . . . . . . . . . Retrieved Matter . | . . . . . . . . . . . . . . . . . . . . . . Parts Self-Destructed 210 | . . . . . . . 17 13 . 23 . . . 12 29 1 35 . 5 12 63 Prevented 14 | . . . . . . . . . . . . . . . . . . . . . 14 Kills | -11 -10 -10 -10 -9 -8 -7 -7 -7 -7 -6 -6 -6 -6 -6 -6 -6 -5 -5 -5 -5 -5 ------- Run | Scr Mat Min Exi Min Mat Fac Low Low Dat Pro Fac Was Fac Low Low Zio Pro Fac Upp Upp War Combat Hostiles Destroyed 102 | . 10 2 . . 5 . 7 11 . 9 . . . . . . 11 24 4 13 6 Guns 57 | . 10 2 . . 5 . 4 7 . 4 . . . . . . 11 13 . 1 . Cannons 12 | . . . . . . . . . . 1 . . . . . . . 3 2 3 3 AOE 29 | . . . . . . . 3 4 . 4 . . . . . . . 6 1 8 3 Classes Destroyed 15 | . 4 . . . 1 . . 2 . 1 . . . . . . 1 3 1 . 2 Worker 5 | . . . . . . . . . . . . . . . . . . 5 . . . Builder 6 | . . . . . 1 . . . . . . . . . . . . 5 . . . Tunneler 1 | . 1 . . . . . . . . . . . . . . . . . . . . Hauler 4 | . 2 . . . 1 . . . . . . . . . . . . 1 . . . Recycler 1 | . . . . . . . . . . . . . . . . . . 1 . . . Swarmer 29 | . 3 . . . 2 . 7 4 . 3 . . . . . . 3 2 . 5 . Saboteur 1 | . . . . . . . . . . . . . . . . . . . . . 1 Grunt 45 | . 7 2 . . 3 . . 5 . 4 . . . . . . 6 9 . 7 2 Brawler 3 | . . . . . . . . 1 . . . . . . . . . . 2 . . Duelist 4 | . . . . . . . . . . 2 . . . . . . 1 1 . . . Sentry 6 | . . . . . . . . . . . . . . . . . 1 3 1 1 . Hunter 3 | . . . . . . . . . . . . . . . . . . . 1 . 2 Programmer 9 | . . . . . . . . 1 . . . . . . . . . 8 . . . Behemoth 1 | . . . . . . . . . . . . . . . . . . 1 . . . Executioner 1 | . . . . . . . . . . . . . . . . . . . . . 1 Decomposer 1 | . . . . . . . . . . . . . . . . . . . 1 . . Butcher 1 | . . . . . . . . . . . . . . 1 . . . . . . . Best Kill Streak 13 | . 4 2 . . 2 . 4 4 . 6 . . . . . . 6 13 3 4 6 Combat Bots Only 6 | . 4 2 . . 2 . 4 4 . 6 . . . . . . 6 5 3 4 6 Max Kills in Single Turn 10 | . 1 1 . . 1 . 4 2 . 3 . . . 1 . . 2 10 2 3 2 Gunslinging 1 | . . . . . . . . 1 . . . . . . . . 1 . . . . Exploded 3 | . . . . . . . 3 1 . 3 . . . . . . . 2 1 3 2 Melee . | . . . . . . . . . . . . . . . . . . . . . . Uniques/NPCs Destroyed . | . . . . . . . . . . . . . . . . . . . . . . Combat | -11 -10 -10 -10 -9 -8 -7 -7 -7 -7 -6 -6 -6 -6 -6 -6 -6 -5 -5 -5 -5 -5 -------- Run | Scr Mat Min Exi Min Mat Fac Low Low Dat Pro Fac Was Fac Low Low Zio Pro Fac Upp Upp War Damage Taken 10524 | . 501 162 . . 482 . 344 459 . 1444 . . 64 290 24 . 940 3582 260 874 1098 Core 1668 | . 117 51 . . 123 . 10 63 . 392 . . . 62 . . 46 375 23 199 207 Absorbed by Shields 682 | . . . . . . . 3 . . . . . . . . . . 397 . . 282 Core Remaining (%) 65 | 100 . . . 32 77 . . . . 33 . . . . . . 87 . . . . Volleys Fired 254 | . 36 10 . . 27 . 7 25 . 20 . . . . . . 27 63 6 26 7 Largest 3 | . 2 2 . . 2 . 2 2 . 2 . . . . . . 2 3 1 2 3 Hottest 153 | . 80 55 . . 40 . 61 61 . 96 . . . . . . 48 153 100 100 110 Shots Fired 518 | . 72 19 . . 54 . 14 50 . 38 . . . 2 . . 54 158 7 33 17 Gun 409 | . 72 14 . . 54 . 13 42 . 25 . . . . . . 54 122 . 7 6 Cannon 92 | . . 5 . . . . . . . 7 . . . 2 . . . 36 7 26 9 Launcher 17 | . . . . . . . 1 8 . 6 . . . . . . . . . . 2 Special . | . . . . . . . . . . . . . . . . . . . . . . Kinetic 406 | . 18 19 . . 54 . 13 42 . 32 . . . 2 . . 54 148 . 15 9 Thermal 89 | . 54 . . . . . . . . . . . . . . . . 10 7 18 . Explosive 15 | . . . . . . . 1 8 . 6 . . . . . . . . . . . Electromagnetic . | . . . . . . . . . . . . . . . . . . . . . . Entropic 8 | . . . . . . . . . . . . . . . . . . . . . 8 Robot Hit Streak 16 | . 12 10 . . 6 . 5 8 . 14 . . . 1 . . 6 16 2 6 9 Robot Miss Streak 6 | . 2 2 . . 3 . 2 4 . 3 . . . 1 . . 6 4 2 2 1 Penetration Max 1 | . . . . . . . . . . . . . . . . . . 1 . . . Secondary Targets 8 | . 1 . . . . . 1 2 . 2 . . . . . . 1 1 . . . Max Gunslinging Chain 1 | . 1 . . . . . 1 1 . 1 . . . . . . 1 1 . . . Shots Hit Robots 361 | . 56 14 . . 33 . 8 30 . 26 . . . 1 . . 50 108 3 20 12 Core Hits 245 | . 24 5 . . 14 . 7 22 . 21 . . . 1 . . 34 81 5 23 8 Critical Kills 6 | . . . . . . . . . . . . . . . . . . 4 1 1 . Critical Parts Destroyed 7 | . . 1 . . 1 . 1 1 . . . . . . . . . 2 . . 1 Critical Strikes 17 | . . 1 . . 1 . 1 1 . 1 . . . . . . . 7 1 1 3 Meltdown 4 | . . . . . . . . . . . . . . . . . . 2 1 1 . Destroy 9 | . . 1 . . 1 . 1 1 . . . . . . . . . 4 . . 1 Blast 2 | . . . . . . . . . . 1 . . . . . . . 1 . . . Sunder 2 | . . . . . . . . . . . . . . . . . . . . . 2 Melee Attacks . | . . . . . . . . . . . . . . . . . . . . . . Impact . | . . . . . . . . . . . . . . . . . . . . . . Slashing . | . . . . . . . . . . . . . . . . . . . . . . Piercing . | . . . . . . . . . . . . . . . . . . . . . . Sneak Attacks . | . . . . . . . . . . . . . . . . . . . . . . Combat Hostiles . | . . . . . . . . . . . . . . . . . . . . . . Follow-up Attacks . | . . . . . . . . . . . . . . . . . . . . . . Damage Inflicted 14659 | . 591 177 . . 461 19 360 1002 . 1373 . . . 26 . . 847 5149 622 2451 1581 Guns 5503 | . 588 119 . . 460 . 172 592 . 303 . . . . . . 847 2242 . 130 50 Cannons 3312 | . . 55 . . . . . . . 162 . . . 26 . . . 1168 411 1107 383 Explosions 5686 | . . . . . . . 188 410 . 908 . . . . . . . 1607 211 1214 1148 Melee . | . . . . . . . . . . . . . . . . . . . . . . Ramming 158 | . 3 3 . . 1 19 . . . . . . . . . . . 132 . . . Kinetic 5891 | . 110 174 . . 460 . 172 592 . 465 . . . 26 . . 847 2701 . 270 74 Thermal 5597 | . 478 . . . . . . . . . . . . . . . . 2316 622 2181 . Explosive 1506 | . . . . . . . 188 410 . 908 . . . . . . . . . . . Electromagnetic . | . . . . . . . . . . . . . . . . . . . . . . Impact . | . . . . . . . . . . . . . . . . . . . . . . Slashing . | . . . . . . . . . . . . . . . . . . . . . . Piercing . | . . . . . . . . . . . . . . . . . . . . . . Entropic 1507 | . . . . . . . . . . . . . . . . . . . . . 1507 Highest Corruption 15 | . . . . . . . . . . 10 . . . 13 13 13 . 15 15 5 5 Average Corruption 8 | . . . . . . . . . . 7 . . . 13 13 13 . 5 8 5 5 Corruption Purged 11 | . . . . . . . . . . . . . . . . . . 1 10 . . Effects 163 | . . . . . . . . . . 1 . . . 39 36 12 . 17 16 38 4 Message Errors 41 | . . . . . . . . . . 1 . . . 5 10 6 . 6 5 7 1 Matter Fused 38 | . . . . . . . . . . . . . . 11 8 1 . 4 4 8 2 Heat Flow Errors 25 | . . . . . . . . . . . . . . 6 5 3 . . 2 9 . Energy Discharges 17 | . . . . . . . . . . . . . . 5 5 . . 1 . 6 . Parts Rejected 2 | . . . . . . . . . . . . . . . . . . 1 . 1 . Data Loss (minor) 22 | . . . . . . . . . . . . . . 5 8 . . 2 2 5 . Data Loss (major) 9 | . . . . . . . . . . . . . . 3 . 2 . 1 2 1 . Misfires 5 | . . . . . . . . . . . . . . 2 . . . . 1 1 1 Alerts 4 | . . . . . . . . . . . . . . 2 . . . 2 . . . Overload Shots . | . . . . . . . . . . . . . . . . . . . . . . Overflow Damage 908 | . . . . . . . . . . . . . . . . . . 484 21 348 55 Projectiles 369 | . . . . . . . . . . . . . . . . . . 81 . 263 25 Explosions 539 | . . . . . . . . . . . . . . . . . . 403 21 85 30 Melee . | . . . . . . . . . . . . . . . . . . . . . . Knockbacks 5 | . . . . . . . . . . . . . . . . . . 5 . . . Impact 2 | . . . . . . . . . . . . . . . . . . 2 . . . Kinetic 3 | . . . . . . . . . . . . . . . . . . 3 . . . Secondary . | . . . . . . . . . . . . . . . . . . . . . . Self-Inflicted Damage 417 | . . . . . . . 3 . . 18 . . . . . . . 184 . 212 . Shots 9 | . . . . . . . 1 . . 1 . . . . . . . 4 . 3 . Rammed . | . . . . . . . . . . . . . . . . . . . . . . Targets Rammed 21 | . 2 1 . . 1 2 . . . . . . . . . . . 15 . . . Kicked 21 | . 2 1 . . 1 2 . . . . . . . . . . . 15 . . . Crushed . | . . . . . . . . . . . . . . . . . . . . . . Highest Temperature 345 | . 318 27 . . 8 . . 35 . 29 . . . 254 274 252 27 345 263 224 21 Average Temperature 72 | . 91 8 . . 6 . . 20 . 14 . . . 104 109 102 8 75 102 65 6 Received Heat Transfer 2412 | . 276 111 . . 306 . . 117 . 292 . . . . . . 243 825 18 189 35 Effects 1 | . . . . . . . . . . . . . . . . . . 1 . . . Short Circuit 1 | . . . . . . . . . . . . . . . . . . 1 . . . Siege Activations . | . . . . . . . . . . . . . . . . . . . . . . Robots Corrupted . | . . . . . . . . . . . . . . . . . . . . . . Combat Hostiles . | . . . . . . . . . . . . . . . . . . . . . . Parts Fried . | . . . . . . . . . . . . . . . . . . . . . . Impact Corruptions . | . . . . . . . . . . . . . . . . . . . . . . Robots Melted 4 | . . . . . . . . . . . . . . . . . . 2 1 1 . Combat Hostiles 4 | . . . . . . . . . . . . . . . . . . 2 1 1 . Parts Melted 15 | . 3 . . . . . . . . . . . . . . . . 10 2 . . Heat Transferred 5680 | . 1100 . . . . . . . . . . . . . . . . 1860 560 2160 . Parts Sabotaged . | . . . . . . . . . . . . . . . . . . . . . . Parts Stolen . | . . . . . . . . . . . . . . . . . . . . . . Parts Stripped . | . . . . . . . . . . . . . . . . . . . . . . Power Chain Reactions . | . . . . . . . . . . . . . . . . . . . . . . Missiles Intercepted . | . . . . . . . . . . . . . . . . . . . . . . Alert | -11 -10 -10 -10 -9 -8 -7 -7 -7 -7 -6 -6 -6 -6 -6 -6 -6 -5 -5 -5 -5 -5 ------- Run | Scr Mat Min Exi Min Mat Fac Low Low Dat Pro Fac Was Fac Low Low Zio Pro Fac Upp Upp War Peak Influence 763 | . 285 99 . . 141 12 . . . . 37 12 481 . . . . 763 . . . Initial 75 | . . 44 . . . . . . . . 37 12 8 . . . . 75 . . . Average 141 | . 119 58 . . 66 . . . . . 37 12 101 . . . . 290 . . . Maximum Alert Level 3 | . 1 . . . . . . . . . . . 2 . . . . 3 . . . Low Security (%) 77 | . 86 100 . 100 100 100 . . . . 100 100 75 . . . . 47 . . . Level 1 7 | . 13 . . . . . . . . . . . 20 . . . . 10 . . . Level 2 13 | . . . . . . . . . . . . . 4 . . . . 39 . . . Level 3 . | . . . . . . . . . . . . . . . . . . 2 . . . Level 4 . | . . . . . . . . . . . . . . . . . . . . . . Level 5 . | . . . . . . . . . . . . . . . . . . . . . . High Security . | . . . . . . . . . . . . . . . . . . . . . . Max Security . | . . . . . . . . . . . . . . . . . . . . . . Squads Dispatched 13 | . 3 . . . 1 . . . . 1 . . 3 . . . 1 4 . . . Investigation 4 | . 2 . . . 1 . . . . . . . 1 . . . . . . . . Extermination 5 | . . . . . . . . . . . . . 2 . . . . 3 . . . Reinforcement 2 | . 1 . . . . . . . . . . . . . . . . 1 . . . Assault 2 | . . . . . . . . . . 1 . . . . . . 1 . . . . Garrison . | . . . . . . . . . . . . . . . . . . . . . . Intercept . | . . . . . . . . . . . . . . . . . . . . . . Construction Impeded 1 | . . . . . . . . . . . . . . . . . . 1 . . . Haulers Reinforced . | . . . . . . . . . . . . . . . . . . . . . . Active Scanning Responses . | . . . . . . . . . . . . . . . . . . . . . . Cargo Convoy Interrupts . | . . . . . . . . . . . . . . . . . . . . . . Stealth | -11 -10 -10 -10 -9 -8 -7 -7 -7 -7 -6 -6 -6 -6 -6 -6 -6 -5 -5 -5 -5 -5 --------- Run | Scr Mat Min Exi Min Mat Fac Low Low Dat Pro Fac Was Fac Low Low Zio Pro Fac Upp Upp War Distress Signals 6 | . 1 1 . . 1 . . . . . . . . . . . . 2 . . 1 Communications Jammed . | . . . . . . . . . . . . . . . . . . . . . . Distress Signals . | . . . . . . . . . . . . . . . . . . . . . . Times Spotted 192 | . 17 3 . . 8 . 20 11 . 23 . . 7 5 10 . 23 32 4 18 11 Peak Tracking Total 13 | . 7 2 . . 3 . 4 5 . 13 . . 3 5 3 . 7 5 3 7 7 Tactical Retreats 20 | . . 1 . . . . 8 2 . 2 . . . . . . 3 1 . 1 2 Traps | -11 -10 -10 -10 -9 -8 -7 -7 -7 -7 -6 -6 -6 -6 -6 -6 -6 -5 -5 -5 -5 -5 ------- Run | Scr Mat Min Exi Min Mat Fac Low Low Dat Pro Fac Was Fac Low Low Zio Pro Fac Upp Upp War Traps Triggered 5 | . 2 . . . . . . . . . 1 . . . . . . 2 . . . Indirectly . | . . . . . . . . . . . . . . . . . . . . . . Trap Hack Attempts . | . . . . . . . . . . . . . . . . . . . . . . Triggered . | . . . . . . . . . . . . . . . . . . . . . . Disarmed 5 | . 2 . . . 3 . . . . . . . . . . . . . . . . Reprogrammed . | . . . . . . . . . . . . . . . . . . . . . . Reused . | . . . . . . . . . . . . . . . . . . . . . . Traps Extracted . | . . . . . . . . . . . . . . . . . . . . . . Installed . | . . . . . . . . . . . . . . . . . . . . . . Triggered 18 | . . . . . . . . . . . . . . . . . . . . 1 17 Machines | -11 -10 -10 -10 -9 -8 -7 -7 -7 -7 -6 -6 -6 -6 -6 -6 -6 -5 -5 -5 -5 -5 ---------- Run | Scr Mat Min Exi Min Mat Fac Low Low Dat Pro Fac Was Fac Low Low Zio Pro Fac Upp Upp War Machines Disabled 29 | . . . . . . . . . . . . . 1 . 4 . . 21 . 3 . Max in Single Turn 15 | . . . . . . . . . . . . . . . . . . 15 . 1 . Machines Sabotaged . | . . . . . . . . . . . . . . . . . . . . . . Garrisons Compromised . | . . . . . . . . . . . . . . . . . . . . . . Overloaded Fab Kills . | . . . . . . . . . . . . . . . . . . . . . . Fab Network Shutdowns . | . . . . . . . . . . . . . . . . . . . . . . Hacking | -11 -10 -10 -10 -9 -8 -7 -7 -7 -7 -6 -6 -6 -6 -6 -6 -6 -5 -5 -5 -5 -5 --------- Run | Scr Mat Min Exi Min Mat Fac Low Low Dat Pro Fac Was Fac Low Low Zio Pro Fac Upp Upp War Machines Accessed 31 | . 4 . 1 . 3 1 . . 4 . . . 1 1 . 1 . 3 1 1 10 Terminals 12 | . 4 . . . 3 . . . . . . . . . . . . 3 1 1 . Fabricators . | . . . . . . . . . . . . . . . . . . . . . . Repair Stations . | . . . . . . . . . . . . . . . . . . . . . . Recycling Units . | . . . . . . . . . . . . . . . . . . . . . . Scanalyzers 1 | . . . . . . 1 . . . . . . . . . . . . . . . Garrison Access 1 | . . . . . . . . . . . . . 1 . . . . . . . . Total Hacks 87 | . 9 . 1 . 9 2 . . 30 . . . 1 1 . 6 . 6 2 2 18 Successful 70 | . 4 . 1 . 4 1 . . 30 . . . . 1 . 6 . 1 2 2 18 Failed 17 | . 5 . . . 5 1 . . . . . . 1 . . . . 5 . . . Catastrophic 6 | . 3 . . . 1 . . . . . . . 1 . . . . 1 . . . Database Lockouts . | . . . . . . . . . . . . . . . . . . . . . . Manual 23 | . 8 . 1 . 6 . . . . . . . . . . 1 . 5 1 1 . Terminals 28 | . 9 . . . 9 . . . . . . . . . . . . 6 2 2 . Fabricators . | . . . . . . . . . . . . . . . . . . . . . . Repair Stations . | . . . . . . . . . . . . . . . . . . . . . . Recycling Units . | . . . . . . . . . . . . . . . . . . . . . . Scanalyzers 2 | . . . . . . 2 . . . . . . . . . . . . . . . Garrison Access 1 | . . . . . . . . . . . . . 1 . . . . . . . . Terminal Hacks 69 | . 4 . 1 . 4 . . . 30 . . . . 1 . 6 . 1 2 2 18 Record 27 | . . . . . . . . . 11 . . . . . . . . . 2 2 12 Part Schematic 14 | . . . . . . . . . 8 . . . . . . 6 . . . . . Robot Schematic 8 | . . . . . . . . . 8 . . . . . . . . . . . . Prototype ID Bank 8 | . . . . . . . . . 3 . . . . . . . . . . . 5 Open Door 2 | . . . . . . . . . . . . . . 1 . . . . . . 1 Level Access Points 1 | . . . . . 1 . . . . . . . . . . . . . . . . Branch Access Points 1 | . 1 . . . . . . . . . . . . . . . . . . . . Alert Level 1 | . . . . . 1 . . . . . . . . . . . . . . . . Locate Traps 1 | . . . . . . . . . . . . . . . . . . 1 . . . Disarm Traps 2 | . 1 . . . 1 . . . . . . . . . . . . . . . . Registered Components 1 | . 1 . . . . . . . . . . . . . . . . . . . . Zone Layout 2 | . 1 . . . 1 . . . . . . . . . . . . . . . . EX-Prototype ID Bank 1 | . . . 1 . . . . . . . . . . . . . . . . . . Fabricator Hacks . | . . . . . . . . . . . . . . . . . . . . . . Repair Station Hacks . | . . . . . . . . . . . . . . . . . . . . . . Recycling Unit Hacks . | . . . . . . . . . . . . . . . . . . . . . . Scanalyzer 1 | . . . . . . 1 . . . . . . . . . . . . . . . Insert Component 1 | . . . . . . 1 . . . . . . . . . . . . . . . Garrison Access Hacks . | . . . . . . . . . . . . . . . . . . . . . . Unauthorized Hacks . | . . . . . . . . . . . . . . . . . . . . . . Terminals . | . . . . . . . . . . . . . . . . . . . . . . Fabricators . | . . . . . . . . . . . . . . . . . . . . . . Repair Stations . | . . . . . . . . . . . . . . . . . . . . . . Recycling Units . | . . . . . . . . . . . . . . . . . . . . . . Scanalyzers . | . . . . . . . . . . . . . . . . . . . . . . Garrison Access . | . . . . . . . . . . . . . . . . . . . . . . Data Cores Recovered . | . . . . . . . . . . . . . . . . . . . . . . Used . | . . . . . . . . . . . . . . . . . . . . . . Hacking Detections 12 | . 4 . . . 3 1 . . . . . . 1 . . . . 3 . . . Full Trace Events 1 | . . . . . 1 . . . . . . . . . . . . . . . . Feedback Events . | . . . . . . . . . . . . . . . . . . . . . . Feedback Blocked . | . . . . . . . . . . . . . . . . . . . . . . Robot Schematics Acquired 8 | . . . . . . . . . 8 . . . . . . . . . . . . Robots Built . | . . . . . . . . . . . . . . . . . . . . . . Matter . | . . . . . . . . . . . . . . . . . . . . . . Time . | . . . . . . . . . . . . . . . . . . . . . . Total Robot Build Rating . | . . . . . . . . . . . . . . . . . . . . . . Part Schematics Acquired 14 | . . . . . . . . . 8 . . . . . . 6 . . . . . Parts Built . | . . . . . . . . . . . . . . . . . . . . . . Matter . | . . . . . . . . . . . . . . . . . . . . . . Time . | . . . . . . . . . . . . . . . . . . . . . . Total Part Build Rating . | . . . . . . . . . . . . . . . . . . . . . . Parts Repaired . | . . . . . . . . . . . . . . . . . . . . . . Time . | . . . . . . . . . . . . . . . . . . . . . . Parts Recycled . | . . . . . . . . . . . . . . . . . . . . . . Recycled Matter . | . . . . . . . . . . . . . . . . . . . . . . Retrieved Matter . | . . . . . . . . . . . . . . . . . . . . . . Retrieved Components . | . . . . . . . . . . . . . . . . . . . . . . Parts Scanalyzed . | . . . . . . . . . . . . . . . . . . . . . . Part Schematics Acquired . | . . . . . . . . . . . . . . . . . . . . . . Parts Damaged . | . . . . . . . . . . . . . . . . . . . . . . Bothacking | -11 -10 -10 -10 -9 -8 -7 -7 -7 -7 -6 -6 -6 -6 -6 -6 -6 -5 -5 -5 -5 -5 ------------ Run | Scr Mat Min Exi Min Mat Fac Low Low Dat Pro Fac Was Fac Low Low Zio Pro Fac Upp Upp War Used RIF Installer . | . . . . . . . . . . . . . . . . . . . . . . Robots Hacked . | . . . . . . . . . . . . . . . . . . . . . . Non-combat . | . . . . . . . . . . . . . . . . . . . . . . Combat . | . . . . . . . . . . . . . . . . . . . . . . Robot Hacks Applied . | . . . . . . . . . . . . . . . . . . . . . . Relay Couplers Released . | . . . . . . . . . . . . . . . . . . . . . . Robots Rewired 6 | . . . . . . . . . . . . . . . . . 2 . . . 4 Allies Hacked 1 | . . . . . . . . . . . . . . 1 . . . . . . . Hacks Repelled . | . . . . . . . . . . . . . . . . . . . . . . Allies | -11 -10 -10 -10 -9 -8 -7 -7 -7 -7 -6 -6 -6 -6 -6 -6 -6 -5 -5 -5 -5 -5 -------- Run | Scr Mat Min Exi Min Mat Fac Low Low Dat Pro Fac Was Fac Low Low Zio Pro Fac Upp Upp War Total Allies 36 | . . . . 1 . . . . . 1 . 20 . . . 6 2 . 2 . 4 Largest Group 20 | . . . . 1 1 . . . . 1 . 20 20 11 9 12 12 . 2 2 4 Highest-Rated Group 776 | . . . . 31 31 . . . . 95 . 776 776 480 392 438 438 . 190 190 203 Highest-Rated Ally 95 | . . . . 31 31 . . . . 95 . 50 50 50 50 50 50 . 95 95 65 Total Orders 39 | . . . . . . . . . . . . . 2 4 6 . 14 6 2 5 . EXPLORE 32 | . . . . . . . . . . . . . 2 2 6 . 12 4 2 4 . RETURN 7 | . . . . . . . . . . . . . . 2 . . 2 2 . 1 . Ally Attacks 254 | . . . . . 4 . . . . 6 . . 58 33 41 . 76 . . 20 16 Total Damage 8057 | . . . . . 20 . . . . 279 . . 1731 1761 1614 . 1568 . . 707 377 Kills 62 | . . . . . . . . . . 1 . . 18 14 12 . 11 . . 5 1 Allies Corrupted . | . . . . . . . . . . . . . . . . . . . . . . Allies Melted 2 | . . . . . . . . . . 1 . . . . 1 . . . . . . Intel | -11 -10 -10 -10 -9 -8 -7 -7 -7 -7 -6 -6 -6 -6 -6 -6 -6 -5 -5 -5 -5 -5 ------- Run | Scr Mat Min Exi Min Mat Fac Low Low Dat Pro Fac Was Fac Low Low Zio Pro Fac Upp Upp War Robot Analysis Total . | . . . . . . . . . . . . . . . . . . . . . . Derelict Logs Recovered 9 | . . 1 . 1 . . 1 1 . . . . . . 2 1 2 . . . . Drone Launches 32 | . . . . . . . . . . . . . 2 2 6 . 12 4 2 4 . Drone Recoveries 22 | . . . . . . . . . . . . . 2 2 2 . 8 3 1 4 . Exploration | -11 -10 -10 -10 -9 -8 -7 -7 -7 -7 -6 -6 -6 -6 -6 -6 -6 -5 -5 -5 -5 -5 ------------- Run | Scr Mat Min Exi Min Mat Fac Low Low Dat Pro Fac Was Fac Low Low Zio Pro Fac Upp Upp War Turns Passed 17221 | . 735 595 290 110 420 457 1879 1477 111 504 36 350 518 1473 1050 1544 1083 1655 466 1364 1104 Spaces Moved 11053 | 1 465 322 237 86 258 356 1532 1151 93 348 28 192 308 863 622 926 589 727 216 928 805 Core 28 | . . . . . . . . . . 11 17 . . . . . . . . . . Treads 3700 | . . . . . . . . . . . 11 192 244 863 622 926 589 253 . . . Legs 6597 | 1 465 322 237 86 258 356 1532 1151 93 337 . . . . . . . 425 216 313 805 Wheels 728 | . . . . . . . . . . . . . 64 . . . . 49 . 615 . Hover . | . . . . . . . . . . . . . . . . . . . . . . Flight . | . . . . . . . . . . . . . . . . . . . . . . Fastest Speed 100 | 120 120 120 120 120 120 120 120 120 120 120 100 165 100 165 163 163 162 120 200 115 120 Average Speed 139 | 120 120 166 120 120 120 120 120 120 120 121 127 176 151 165 164 163 162 148 200 128 120 Slowest Speed 470 | 120 120 200 120 120 120 120 120 200 120 200 170 470 165 165 165 163 165 263 200 200 120 Overloaded Moves . | . . . . . . . . . . . . . . . . . . . . . . Propulsion Burnouts . | . . . . . . . . . . . . . . . . . . . . . . Robots Hopped 1 | . . . . . . . . . . . . . . . . . . 1 . . . Cave-ins Triggered 1 | . . . . . . . . . . . . . . 1 . . . . . . . Exploration Rate (%) 59 | 1 67 60 61 34 21 10 98 99 70 42 1 88 8 99 99 85 98 25 66 97 79 Regions Visited 21 Branch Regions 14 Pre-discovered Areas 4 | . . 1 . 1 . . . . 1 . . . . . . 1 . . . . . Known Exits Taken 11 | . 1 . . . 1 1 1 1 1 1 . . 1 . . . . 1 1 1 . Unknown Exits Taken 8 | 1 . 1 1 1 . . . . . . . . . 1 1 1 1 . . . . Scrap Searched 25 | . . 1 . 1 . . 2 3 . . . . . 7 3 2 . . 1 5 . Spaces Dug . | . . . . . . . . . . . . . . . . . . . . . . Terrain Destroyed 495 | . . . . . . . 13 50 . 57 . . . . . . . 114 65 149 47 Melee . | . . . . . . . . . . . . . . . . . . . . . . Projectile 46 | . . . . . . . . . . 1 . . . . . . . 34 4 6 1 AOE 449 | . . . . . . . 13 50 . 56 . . . . . . . 80 61 143 46 Terrain Rammed . | . . . . . . . . . . . . . . . . . . . . . . Walls Destroyed . | . . . . . . . . . . . . . . . . . . . . . . Machines Disabled . | . . . . . . . . . . . . . . . . . . . . . . Actions | -11 -10 -10 -10 -9 -8 -7 -7 -7 -7 -6 -6 -6 -6 -6 -6 -6 -5 -5 -5 -5 -5 --------- Run | Scr Mat Min Exi Min Mat Fac Low Low Dat Pro Fac Was Fac Low Low Zio Pro Fac Upp Upp War Total 12334 | . 582 360 243 93 314 387 1559 1193 92 391 30 200 357 915 651 961 660 1154 233 1027 932 Wait 552 | . 42 18 . 1 . 6 13 7 . 17 . . 30 37 13 30 11 263 3 51 10 Move 11031 | . 464 321 236 85 257 355 1531 1150 92 347 28 191 307 862 621 925 588 724 215 927 805 Hop 1 | . . . . . . . . . . . . . . . . . . 1 . . . Pick Up 123 | . 17 2 2 3 15 6 2 2 . . . . 12 8 5 3 4 27 1 7 7 Fast Attach 25 | . 1 . . . . 1 . . . . 1 6 6 . 2 . . 4 . 1 3 Attach 85 | . 2 1 1 1 6 2 1 1 . 2 . . 1 2 2 2 1 38 3 13 6 Detach 21 | . . 1 . . . . . . . . . 1 . 2 . . . 11 2 1 3 Swap 48 | . 4 4 1 1 4 7 3 5 . 4 . 1 . . 3 . 4 3 2 . 2 Drop 66 | . 14 2 3 2 4 8 1 3 . 1 1 1 1 4 5 1 3 5 1 1 5 Fire 254 | . 36 10 . . 27 . 7 25 . 20 . . . . . . 27 63 6 26 7 Melee . | . . . . . . . . . . . . . . . . . . . . . . Ram . | . . . . . . . . . . . . . . . . . . . . . . Kick 21 | . 2 1 . . 1 2 . . . . . . . . . . . 15 . . . Crush . | . . . . . . . . . . . . . . . . . . . . . . Escape Stasis . | . . . . . . . . . . . . . . . . . . . . . . Rewire 107 | . . . . . . . 1 . . . . . . . . . 22 . . . 84 Trap . | . . . . . . . . . . . . . . . . . . . . . . Miscellaneous . | . . . . . . . . . . . . . . . . . . . . . . Route ------- -11/Scrapyard -10/Materials (discovered 4 exits: [*Mat x3] / *Min) -10/Mines (discovered 3 exits: [*Mat x2] / *Exi) -10/Exiles (discovered 2 exits: [*Min x2]) -9/Mines -8/Materials (discovered 4 exits: *Fac x3 / *Sto) -7/Factory -7/Lower Caves -7/Lower Caves (discovered 2 exits: *Fac / *Dat) -7/Data Miner -6/Proximity Caves -6/Factory -6/Waste -6/Factory -6/Lower Caves -6/Lower Caves (discovered 2 exits: *Fac / *Zio) -6/Zion -5/Proximity Caves -5/Factory -5/Upper Caves -5/Upper Caves (discovered 2 exits: *Fac / *War) -5/Warlord (discovered 1 exit: *Pro) History --------- Turn | Location | Event 1 | -11/Scrapyard | Discovered new exit (range 0) 1 | -11/Scrapyard | Entered Materials 10 | -10/Materials | Identified exit to Mines 155 | -10/Materials | Discovered new exit (range 5) 319 | -10/Materials | Build established: Mutant 445 | -10/Materials | Discovered new exit (range 16) 472 | -10/Materials | Discovered new exit (range 11) 736 | -10/Materials | Entered Mines 804 | -10/Mines | Core integrity fell below 50% 981 | -10/Mines | Discovered new exit (range 9) 1130 | -10/Mines | Received a Rocket Launcher from a helpful Derelict 1169 | -10/Mines | Assembled infested the area 1174 | -10/Mines | Assisted by a Guerilla fighting off Assembled 1230 | -10/Mines | Discovered new exit (range 7) 1302 | -10/Mines | Learned location of Zion (-6) 1326 | -10/Mines | Deemed a non-threat by the Exiles lab entrance 1326 | -10/Mines | Discovered new exit (range 5) 1331 | -10/Mines | Entered Exiles 1349 | -10/Exiles | Discovered new exit (range 15) 1361 | -10/Exiles | Met 8R-AWN 1382 | -10/Exiles | Met EX-HEX 1417 | -10/Exiles | Met EX-BIN 1431 | -10/Exiles | Aligned with FarCom system 1432 | -10/Exiles | Given EX-Vault access code 1462 | -10/Exiles | Opened EX-Vault 1476 | -10/Exiles | Found YOLO Cannon 1501 | -10/Exiles | Warned to stay clear of 0b10 Research branches 1535 | -10/Exiles | Met EX-DEC 1606 | -10/Exiles | Discovered new exit (range 14) 1621 | -10/Exiles | Left Exiles lab with YOLO Cannon 1621 | -10/Exiles | Entered Mines 1722 | -9/Mines | Learned location of Storage (-8) 1723 | -9/Mines | Discovered new exit (range 7) 1726 | -9/Mines | Received a Mining Laser from a helpful Derelict 1731 | -9/Mines | Entered Materials 1731 | -8/Materials | Accompanied by 1 ally 1731 | -8/Materials | Evolved 4 slots: Propulsion x2, Utility x2 1732 | -8/Materials | Discovered new exit (range 7) 1756 | -8/Materials | Identified exit to Storage 1910 | -8/Materials | Build established: Skirmisher 1926 | -8/Materials | Identified exit to Factory 2151 | -8/Materials | Entered Factory 2151 | -7/Factory | Evolved 2 slots: Utility x2 2259 | -7/Factory | Discovered new exit (range 12) 2274 | -7/Factory | Identified exit to Lower Caves 2608 | -7/Factory | Entered Lower Caves 2689 | -7/Lower Caves | Encountered a Warlord checkpoint 2897 | -7/Lower Caves | Build established: Mutant 3003 | -7/Lower Caves | Learned location of 1 exit from Factory 4003 | -7/Lower Caves | Discovered new exit (range 5) 4008 | -7/Lower Caves | Identified exit to Lower Caves 4487 | -7/Lower Caves | Entered another Lower Caves area 4575 | -7/Lower Caves | Discovered new exit (range 12) 4589 | -7/Lower Caves | Identified exit to Factory 5070 | -7/Lower Caves | Discovered new exit (range 13) 5084 | -7/Lower Caves | Identified exit to Data Miner 5964 | -7/Lower Caves | Entered Data Miner 5964 | -7/Data Miner | Discovered new exit (range 6) 5981 | -7/Data Miner | Identified exit to Proximity Caves 5997 | -7/Data Miner | Met Data Miner 6034 | -7/Data Miner | Learned location of Section 7 (-3) 6034 | -7/Data Miner | Acquired the access code to Warlord's prototype stash 6044 | -7/Data Miner | Received God Mode back door access code from Data Miner 6075 | -7/Data Miner | Entered Proximity Caves 6212 | -6/Proximity Caves | Escorted by Enhanced Grunt 6366 | -6/Proximity Caves | Spotted B-75 Beast 6520 | -6/Proximity Caves | Attracted the attention of an 0b10 outpost 6521 | -6/Proximity Caves | Discovered exit to Factory (range 16) 6558 | -6/Proximity Caves | System corruption reached 10% 6571 | -6/Proximity Caves | Core integrity fell below 50% 6579 | -6/Proximity Caves | Entered Factory 6579 | -6/Factory | Evolved 2 slots: Propulsion x2 6580 | -6/Factory | Identified exit to Lower Caves 6591 | -6/Factory | Lost 10 parts (1p3n5u1w) 6615 | -6/Factory | Sucked down chute 6615 | -6/Factory | Entered Waste 6616 | -6/Waste | Joined by Warlord forces that had cleared the area 6876 | -6/Waste | Found Damper Plating 6921 | -6/Waste | Discovered new exit (range 12) 6965 | -6/Waste | Entered Factory 6965 | -6/Factory | Accompanied by 20 allies 7448 | -6/Factory | Discovered exit to Lower Caves (range 11) 7483 | -6/Factory | Entered Lower Caves 7483 | -6/Lower Caves | Accompanied by 11 allies 7909 | -6/Lower Caves | Crushed by falling debris 7909 | -6/Lower Caves | System corruption reached 10% 7940 | -6/Lower Caves | Lost 3 parts (1p2n) 8758 | -6/Lower Caves | Discovered new exit (range 86) 8956 | -6/Lower Caves | Entered another Lower Caves area 8956 | -6/Lower Caves | Accompanied by 9 allies 9044 | -6/Lower Caves | Discovered new exit (range 72) 9174 | -6/Lower Caves | Learned Factory terminal intel 9423 | -6/Lower Caves | Discovered new exit (range 10) 9820 | -6/Lower Caves | Encountered a Warlord checkpoint 9918 | -6/Lower Caves | Attracted the attention of an 0b10 base 10006 | -6/Lower Caves | Entered Zion 10006 | -6/Zion | Accompanied by 6 allies 10034 | -6/Zion | Given the Hacking Drone Bay 10035 | -6/Zion | Found Prototype Device 10117 | -6/Zion | Discovered new exit (range 11) 10246 | -6/Zion | System corruption cleaned by Quarantine Array 10303 | -6/Zion | Learned Factory emergency access door positions 10319 | -6/Zion | Acquired unknown access codes intercepted by a Zionite 10391 | -6/Zion | Gained Derelict followers 10466 | -6/Zion | Received a visual enhancement algorithm 10688 | -6/Zion | Rebuked by Imprinter 10745 | -6/Zion | Given A8's code to call for help 10873 | -6/Zion | Found Prototype Device 10926 | -6/Zion | Gained Derelict followers 10996 | -6/Zion | Learned location of Warlord (-5) 11026 | -6/Zion | Learned Factory garrison access intel 11159 | -6/Zion | Build established: Derelict-Mutant 11550 | -6/Zion | Entered Proximity Caves 11550 | -5/Proximity Caves | Accompanied by 12 allies 11889 | -5/Proximity Caves | Learned Factory terminal intel 12122 | -5/Proximity Caves | Attracted the attention of an 0b10 outpost 12320 | -5/Proximity Caves | Discovered new exit (range 27) 12633 | -5/Proximity Caves | Entered Factory 12633 | -5/Factory | Evolved 2 slots: Utility x1, Weapon x1 12635 | -5/Factory | Loaded intel: 20 terminal locations 12636 | -5/Factory | Loaded intel: 4 garrison access locations 13094 | -5/Factory | Build established: Derelict-Skirmisher 13400 | -5/Factory | Build established: Scavenger-Skirmisher 13689 | -5/Factory | Lost 10 parts (1p4n2u3w) 13728 | -5/Factory | Spotted B-75 Beast 13765 | -5/Factory | Destroyed B-75 Beast 13929 | -5/Factory | Lost 3 parts (2n1u) 13960 | -5/Factory | System corruption reached 10% 14050 | -5/Factory | Lost 6 parts (1p2n3u) 14249 | -5/Factory | Discovered new exit (range 21) 14281 | -5/Factory | Identified exit to Upper Caves 14288 | -5/Factory | Entered Upper Caves 14402 | -5/Upper Caves | Discovered new exit (range 102) 14530 | -5/Upper Caves | Attracted the attention of an 0b10 checkpoint 14535 | -5/Upper Caves | Build established: Scavenger-Mutant 14542 | -5/Upper Caves | Identified Mobile Refinery Mk. CCLXVII 14581 | -5/Upper Caves | Identified Hacking Drone Bay 14616 | -5/Upper Caves | Enhanced Grunt warped into view, answering call for help 14628 | -5/Upper Caves | Enhanced Grunt warped into view, answering call for help 14751 | -5/Upper Caves | Identified exit to Upper Caves 14754 | -5/Upper Caves | Entered another Upper Caves area 14754 | -5/Upper Caves | Accompanied by 2 allies 14773 | -5/Upper Caves | Attracted the attention of an 0b10 base 14814 | -5/Upper Caves | Learned Factory trap positions 14814 | -5/Upper Caves | Learned Factory garrison access intel 15068 | -5/Upper Caves | Build established: Mutant 15234 | -5/Upper Caves | Discovered new exit (range 41) 15294 | -5/Upper Caves | Identified exit to Factory 15375 | -5/Upper Caves | Core integrity fell below 50% 15746 | -5/Upper Caves | Attracted the attention of an 0b10 checkpoint 15789 | -5/Upper Caves | Lost 6 parts (1p1n3u1w) 15861 | -5/Upper Caves | Core integrity fell below 20% 16106 | -5/Upper Caves | Encountered a Warlord checkpoint 16110 | -5/Upper Caves | Discovered new exit (range 6) 16117 | -5/Upper Caves | Identified exit to Warlord 16118 | -5/Upper Caves | Entered Warlord 16209 | -5/Warlord | Discovered new exit (range 8) 16217 | -5/Warlord | Identified exit to Proximity Caves 16280 | -5/Warlord | System corruption cleaned by Quarantine Array 16467 | -5/Warlord | Build established: Hacker-Mutant 16585 | -5/Warlord | Met Warlord 16610 | -5/Warlord | Warlord's base attacked by MAIN.C 16839 | -5/Warlord | Found Prototype Launcher 16842 | -5/Warlord | Found Prototype Energy Cannon 16845 | -5/Warlord | Found Prototype Energy Cannon 16939 | -5/Warlord | Build established: Hacker-Tank 16960 | -5/Warlord | Warlord forces counterattacked 17174 | -5/Warlord | Spotted Executioner 17176 | -5/Warlord | Spotted Executioner 17207 | -5/Warlord | Identified Vortex Catalyst Activator 17213 | -5/Warlord | Identified Vortex Cannon (x2) 17215 | -5/Warlord | Destroyed Executioner 17222 | -5/Warlord | Destroyed by Executioner with Helical Railgun Last Messages --------------- 17215_ Mainframe disabled. 17215_ Executioner suffers critical hit (Sunder). 17215_ Executioner Prototype Ballistic Gun ripped off. 17215_ Executioner destroyed. 17216_ Penetrated by Slug. 17216_ Slug penetrates Wall. 17216_ Penetrated by Slug. 17216_ Slug penetrates Wall. 17216_ Penetrated by Slug. 17217_ Wall collapses. 17218_ Destroyed Hpw. Shotgun. 17218_ H-77 Assassin destroyed. 17219_ Penetrated by Slug. 17219_ Slug penetrates Wall. 17219_ Mic. Fission Core destroyed. 17221_ H-66 Slayer suffers critical hit (Sunder). 17221_ H-66 Slayer Flexi-carbon Leg ripped off. 17221_ H-66 Slayer destroyed. 17222_ Penetrated by Slug. [Achievement: Achiever] Map ----- +----------------------------------------------------+ | ????????###########??????????????????????????????? | | ##??????# #??????????????????????????????? | | #??????# #?#######??????????????????????? | | #??????# #?#!!"""##?????????????????????? | | #####??# #?#!! X "#?????????????????????? | | # #### #?#"" !#?????????????????####? | | + + % #?#""X !######???????????## ## | | # #### #?#""" !## #??????????## # | | # #??# #?#### ### #??????????# # | | # #??#########+######+#### #??????????# ## | | ## ##???#^ #??????????# # | | ## #???# #####??????????# # | | ## ##???# """ """ #??????????????## | | ## #????# """ ^""" ###???????????????### | | ## ##???# """ """ #???????????????????## | | # ##### """ """ #????????????????????## | | # """ """ #?????????????????????# | | + #?????????????????????# | | # #?????????????????????## | | # ##### #??????????????????????# | | ############;;;#;##### ##??????????????????????? | | #???# ; ?# ##?????""#??????????????? | | #???# """" """" ; # ###??#""#??????????????? | | #??????"""" "" ; ; i## ####""##?????????????? | | #????? """" "" #;;; #;#; ;;"";;;##??????????? | | ????# """ ^ ; @= ! == =############ | | ????# ; !=%! % %"%""""""""# | | ?????#########+;;;; =!%!=! %=% %[%"""""""""# | | ????????????#; [%[% %% E[[ % /!% # | | ????????????## % *!!* %! %% + | | ?????????????# %% % [%% % %* ^+ | | ?????????????# * === %% # | | ?????????????# # % % % %%"""""""""# | | ?????????????# # %[ ; % "%"""""""""# | | ?????????????+ # = # "" ############ | | ?????????????# #### #######""#;;##??????????? | | ?????????????# ? #?????#""#?#????????????? | | ?????????????# #?????#""#??????????????? | | ????????????? """ #?????#""???????????????? | | ???????????? """ #???????"???????????????? | | ??????????? """ ???????????????????????? | | ??????????? ? #??????????????????????? | | ?????????? ?? #??????????????????????? | | ??????????? ??? #??????????????????????# | | ????????????? ???? #?????????????????????## | | ??????????????? #????## #???????????????????????# | | ????????????????????????????????????????????##### | | ???????????????????????????????????????????## # | | ???????????????????????????????????????????# | | ???????????????????????????????????????????# | +----------------------------------------------------+ Best States ------------- Heat Dissipation 40 Energy Generation 21 Energy Capacity 325 Matter Stores 450 Matter Capacity 450 Sight Range 22 Robot Scan Range 16 Terrain Scan Density 10 Additional Mass Support 6 Armor Coverage 1600 Resistance: KI 20 Resistance: EM 90 Core Shielding 20 Propulsion Shielding 66 Point Defense Rating 160 Phase Shifting 5 Evasion (%) 60 Recoil Reduction 5 Offensive Hacking 11 Defensive Hacking 22 Item Schematics ----------------- Combat Drone Bay | -7/Data Miner | Free Lgt. Regenerative Plating | -7/Data Miner | Free Triangulator | -7/Data Miner | Free Exp. Sensor Array | -7/Data Miner | Free Exp. Targeting Computer | -7/Data Miner | Free Cloaking Device | -7/Data Miner | Free Mni. Smartbomb Launcher | -7/Data Miner | Free Plasma Sword | -7/Data Miner | Free Riot Gun | -6/Zion | Free Hvy. Riot Gun | -6/Zion | Free Hvy. Battle Rifle | -6/Zion | Free Battle Cannon | -6/Zion | Free Tactical Coordination Suite | -6/Zion | Free Flamer | -6/Zion | Free Robot Schematics ------------------ S-27 Virus | -7/Data Miner | Free G-50 Soldier | -7/Data Miner | Free G-67 Veteran | -7/Data Miner | Free L-41 Fighter | -7/Data Miner | Free H-66 Slayer | -7/Data Miner | Free X-72 Disruptor | -7/Data Miner | Free P-70 Sage | -7/Data Miner | Free I-36 Angel | -7/Data Miner | Free Fabricated ------------ Nothing Alien Tech Used ----------------- None Achievements -------------- A Powerful Ally? Achiever Adventurer Help From High Places It Was An Accident, I Swear Oh No You Don't! Safety First We Are Legion Challenges ------------ None Game ------ Seed GuidancePlasmaLeg Manual? 0 Play Time 03:01:21 Cumulative 40.2 hours Start 2021.08.08 @ 02:35:37 End 2021.08.08 @ 05:43:17 Sessions 1 Manual Loads 0 Difficulty Rogue Special Mode None Game No. 49 Rogue 49 Adventurer 0 Explorer 0 Win Type - Total 0 Types 0/0/0/0/0/0/0/0/0 Lore% 31 Gallery% 34 Achievement% 26 Wizard Run 0 Options --------- ASCII 1 Keyboard 0 Movement Vi Keybinds 0 Fullscreen 2 Font 24/Smallcaps Map View 76x50 Tactical HUD 1 Map Filters NONE Filters NONE Steam 1 RUN: 886f5d70-51eb-4867-85b0-61a86aa031af